bitfinex-derivatives/quotes_BTCF0:USTF0_20250711
["timestamp","ask_amount","ask_price","bid_price","bid_amount"]
[1752270083778,0.20596568,117570.0,117560.0,0.27204109]
[1752270083973,0.56676568,117570.0,117560.0,0.27404109]
[1752270084374,0.96676583,117570.0,117560.0,0.10399119]
[1752270085278,0.96676583,117570.0,117560.0,0.07303119]
[1752270086281,1.59156583,117570.0,117560.0,0.07303119]
[1752270086779,1.59156583,117570.0,117560.0,0.10199119]
[1752270086980,1.59156583,117570.0,117560.0,0.10299119]
[1752270088074,1.76168583,117570.0,117560.0,0.02701119]
[1752270088276,2.16168598,117570.0,117560.0,9e-08]
[1752270088678,2.22236646,117570.0,117560.0,9e-08]
[1752270089281,1.76168583,117570.0,117560.0,9e-08]
[1752270089487,1.82215553,117570.0,117560.0,9e-08]
[1752270089676,0.1700643,117550.0,117540.0,0.10521791]
[1752270089877,1.5739525,117550.0,117540.0,0.10521791]
[1752270090283,1.5739525,117550.0,117540.0,0.10029]
[1752270091080,1.5739525,117550.0,117540.0,0.10129]
[1752270091385,1.59168848,117550.0,117540.0,0.10129]
[1752270094190,0.96652848,117550.0,117540.0,0.10129]
[1752270094480,1.02699818,117550.0,117540.0,0.10129]
[1752270094684,1.65215818,117550.0,117540.0,0.10129]
[1752270094886,1.02699818,117550.0,117540.0,0.10129]
[1752270095187,1.65207818,117550.0,117540.0,0.10129]
[1752270096086,1.02699818,117550.0,117540.0,0.10129]
[1752270096388,1.65223818,117550.0,117540.0,0.10129]
[1752270096987,1.02699818,117550.0,117540.0,0.10129]
[1752270097292,1.65163818,117550.0,117540.0,0.10129]
[1752270097481,1.65263818,117550.0,117540.0,0.10129]
[1752270097677,0.20672833,117550.0,117540.0,0.67136895]
[1752270097989,0.26719803,117550.0,117540.0,1.03216895]
[1752270098186,0.20672833,117550.0,117540.0,1.03216895]
[1752270098487,0.20672833,117550.0,117540.0,0.6321688]
[1752270098687,0.20672833,117550.0,117540.0,1.1321688]
[1752270101288,0.60672848,117550.0,117540.0,1.1321688]
[1752270101490,0.60772848,117550.0,117540.0,1.1311688]
[1752270101684,0.60772848,117550.0,117540.0,0.96109]
[1752270101884,0.60772848,117550.0,117540.0,0.60029]
[1752270101885,0.96852848,117550.0,117540.0,0.60029]
[1752270102290,0.56852833,117550.0,117540.0,0.60029]
[1752270102491,0.96852848,117550.0,117540.0,0.60029]
[1752270104191,0.56852833,117550.0,117540.0,0.10029]
[1752270104392,0.96852848,117550.0,117540.0,0.10029]
[1752270104786,1.02899818,117550.0,117540.0,0.10029]
[1752270104992,0.62899803,117550.0,117540.0,0.10029]
[1752270105287,1.02899818,117550.0,117540.0,0.10029]
[1752270105587,0.18999235,117550.0,117540.0,1.65540895]
[1752270106389,0.01992805,117550.0,117540.0,1.65540895]
[1752270106588,0.01992805,117550.0,117540.0,2.51620895]
[1752270106793,0.01892805,117550.0,117540.0,2.51620895]
[1752270106993,0.01992805,117550.0,117540.0,2.51620895]
[1752270108596,0.01892805,117550.0,117540.0,2.51620895]
[1752270109296,0.18899235,117550.0,117540.0,2.51620895]
[1752270109595,0.18899235,117550.0,117540.0,1.32189]
[1752270109596,0.60683294,117550.0,117540.0,1.32189]
[1752270109894,0.60683294,117550.0,117540.0,0.96109]
[1752270110093,0.58890489,117550.0,117540.0,0.60029]
[1752270110289,0.94970489,117550.0,117540.0,0.60029]
[1752270111290,0.94870489,117550.0,117540.0,0.07033]
[1752270111892,0.94970489,117550.0,117540.0,0.07033]
[1752270112199,0.94970489,117550.0,117540.0,0.001]
[1752270112399,0.1700787,117540.0,117530.0,0.06991]
[1752270112700,0.93087885,117540.0,117530.0,0.06991]
[1752270112899,0.5308787,117540.0,117530.0,0.06991]
[1752270113099,0.93087885,117540.0,117530.0,0.06991]
[1752270113300,0.1700932,117530.0,117520.0,0.77696177]
[1752270113500,0.93089335,117530.0,117520.0,0.77696177]
[1752270115601,0.93089335,117530.0,117520.0,0.77796177]
[1752270115997,0.5308932,117530.0,117520.0,0.77796177]
[1752270116197,0.93089335,117530.0,117520.0,0.77796177]
[1752270116398,0.57009335,117530.0,117520.0,0.77896177]
[1752270117999,0.93089335,117530.0,117520.0,0.77896177]
[1752270118497,0.57009335,117530.0,117520.0,0.77896177]
[1752270118806,0.93089335,117530.0,117520.0,0.77896177]
[1752270120596,0.1700932,117530.0,117520.0,0.94906947]
[1752270121002,0.57009335,117530.0,117520.0,0.77896177]
[1752270121205,0.1700932,117530.0,117520.0,0.94906947]
[1752270121403,0.57009335,117530.0,117520.0,0.94906947]
[1752270122002,0.57009335,117530.0,117520.0,1.44906947]
[1752270123706,0.1700932,117530.0,117520.0,2.20986962]
[1752270123907,0.2551348,117540.0,117530.0,0.2731132]
[1752270124107,0.2551348,117540.0,117530.0,1.03391335]
[1752270124404,0.82115689,117550.0,117540.0,0.2031887]
[1752270124405,0.27294984,117550.0,117540.0,0.2031887]
[1752270124607,0.3155587,117560.0,117550.0,0.2274243]
[1752270124911,0.4212697,117580.0,117560.0,0.1455293]
[1752270125099,0.6158405,117580.0,117570.0,1.97290545]
[1752270125302,0.69425692,117590.0,117580.0,0.2031309]
[1752270125603,0.80329835,117600.0,117580.0,0.2031309]
[1752270125604,0.06084523,117600.0,117590.0,0.2031164]
[1752270125804,0.38160186,117610.0,117600.0,0.273012]
[1752270126003,0.2549587,117620.0,117610.0,0.1699775]
[1752270126202,0.6157587,117620.0,117610.0,1.92642765]
[1752270126810,0.3036019,117630.0,117620.0,0.169963]
[1752270127010,0.3036019,117630.0,117620.0,1.1095343]
[1752270127011,0.18742929,117630.0,117620.0,1.1095343]
[1752270127310,0.18742929,117630.0,117620.0,1.28517176]
[1752270127511,0.18742929,117630.0,117620.0,1.28117176]
[1752270127712,0.01748069,117630.0,117620.0,1.52917176]
[1752270128014,0.2124289,117640.0,117630.0,0.1699486]
[1752270128308,0.4539405,117650.0,117640.0,0.1699342]
[1752270128309,0.6176935,117650.0,117640.0,0.1699342]
[1752270128510,0.6351124,117650.0,117640.0,0.70394002]
[1752270128808,0.0194189,117650.0,117640.0,0.87394001]
[1752270129004,0.2123913,117660.0,117650.0,0.1699197]
[1752270129201,0.169895,117670.0,117660.0,0.254853]
[1752270129400,0.18728614,117670.0,117660.0,0.7668727]
[1752270129608,0.6581024,117680.0,117670.0,0.1698908]
[1752270129805,0.67549428,117680.0,117670.0,1.9669159]
[1752270130008,0.63302248,117680.0,117670.0,1.4973708]
[1752270130214,0.6156306,117680.0,117670.0,1.4973708]
[1752270130910,0.2548306,117680.0,117670.0,1.4981308]
[1752270132508,0.2548306,117680.0,117670.0,1.4961308]
[1752270132708,0.3261306,117680.0,117670.0,1.82624]
[1752270132909,0.3563506,117680.0,117670.0,1.82624]
[1752270133109,0.3573506,117680.0,117670.0,1.82624]
[1752270133309,0.3573506,117680.0,117670.0,1.9961308]
[1752270136015,0.3563506,117680.0,117670.0,1.9961308]
[1752270136217,0.3573506,117680.0,117670.0,1.9961308]
[1752270136715,0.3563506,117680.0,117670.0,1.9961308]
[1752270136922,0.3563506,117680.0,117670.0,1.9971308]
[1752270137518,0.3563506,117680.0,117670.0,1.9981308]
[1752270138420,0.3563506,117680.0,117670.0,1.82748]
[1752270138421,1.1866957,117680.0,117670.0,1.82748]
[1752270138720,1.3566557,117680.0,117670.0,0.37644]
[1752270138914,1.6066557,117680.0,117670.0,0.1065089]
[1752270139120,0.1699053,117660.0,117650.0,1.31676]
[1752270139317,1.3610504,117660.0,117650.0,1.31676]
[1752270139523,1.3610504,117660.0,117640.0,0.10513003]
[1752270139524,0.1699197,117650.0,117640.0,0.10513003]
[1752270139723,1.0002648,117650.0,117640.0,0.76405003]
[1752270140324,1.0002648,117650.0,117640.0,0.10513003]
[1752270140626,1.0002648,117650.0,117640.0,0.76389003]
[1752270141223,1.0002648,117650.0,117640.0,0.76489003]
[1752270143520,1.0002648,117650.0,117640.0,0.00270003]
[1752270143719,1.4698099,117650.0,117640.0,0.00270003]
[1752270143924,1.4698099,117650.0,117640.0,3e-08]
[1752270144124,2.5463699,117650.0,117640.0,3e-08]
[1752270144329,2.2963699,117650.0,117640.0,3e-08]
[1752270144523,2.5463699,117650.0,117640.0,3e-08]
[1752270145429,2.5483699,117650.0,117640.0,3e-08]
[1752270145626,1.8291448,117650.0,117640.0,3e-08]
[1752270146622,1.8282648,117650.0,117640.0,3e-08]
[1752270146828,1.8282648,117650.0,117640.0,0.02433003]
[1752270147534,0.5327197,117650.0,117640.0,0.02533]
[1752270147833,1.6577048,117650.0,117640.0,0.10443]
[1752270148135,1.0022648,117650.0,117640.0,0.2743642]
[1752270148634,1.0032648,117650.0,117640.0,0.2743642]
[1752270149036,0.5337197,117650.0,117640.0,0.2743642]
[1752270151232,0.5337197,117650.0,117640.0,0.7743642]
[1752270151929,0.1729197,117650.0,117640.0,0.7743642]
[1752270155533,0.1729197,117650.0,117640.0,1.1351642]
[1752270156041,0.1729197,117650.0,117640.0,0.7743642]
[1752270161247,0.1729197,117650.0,117640.0,0.60443]
[1752270161248,1.0032648,117650.0,117640.0,0.60443]
[1752270162152,1.0032648,117650.0,117640.0,0.10443]
[1752270167246,1.0100848,117650.0,117640.0,0.10443]
[1752270168547,1.0100848,117650.0,117640.0,0.1177114]
[1752270168747,1.0100848,117650.0,117640.0,0.10443]
[1752270170646,1.0208948,117650.0,117640.0,0.10443]
[1752270171144,0.01763,117630.0,117620.0,1.36448]
[1752270171349,1.3787237,117630.0,117620.0,1.36448]
[1752270172849,0.9091786,117630.0,117620.0,1.36448]
[1752270173051,1.4395761,117630.0,117620.0,1.36648]
[1752270173253,1.3787237,117630.0,117620.0,1.36648]
[1752270175853,1.3787237,117630.0,117620.0,1.36748]
[1752270178057,0.9091786,117630.0,117620.0,1.36748]
[1752270178252,1.3787237,117630.0,117620.0,1.36748]
[1752270186855,1.3100208,117630.0,117620.0,1.36748]
[1752270194362,1.3708732,117630.0,117620.0,1.36748]
[1752270196158,1.3936332,117630.0,117620.0,0.0791088]
[1752270198066,1.3946332,117630.0,117620.0,0.0771088]
[1752270198261,1.3946332,117630.0,117620.0,0.0997488]
[1752270198865,1.3946332,117630.0,117620.0,0.0987488]
[1752270198866,1.3956332,117630.0,117620.0,0.0987488]
[1752270200060,0.227793,117620.0,117610.0,0.73714]
[1752270200364,1.05036471,117620.0,117610.0,0.73714]
[1752270203159,1.05036471,117620.0,117610.0,0.1053]
[1752270203370,1.05036471,117620.0,117610.0,0.04845]
[1752270203865,1.05887381,117620.0,117610.0,0.04845]
[1752270204064,1.13493931,117620.0,117610.0,0.04845]
[1752270204861,1.05887381,117620.0,117610.0,0.04845]
[1752270205768,1.05987381,117620.0,117610.0,0.04845]
[1752270206167,1.07715992,117620.0,117610.0,0.04845]
[1752270206568,1.07815992,117620.0,117610.0,0.04845]
[1752270206777,0.67731772,117620.0,117610.0,0.04845]
[1752270207068,1.07815992,117620.0,117610.0,0.04845]
[1752270207263,0.2278075,117610.0,117600.0,0.07279061]
[1752270207464,1.06768035,117610.0,117600.0,0.10700061]
[1752270207662,1.69904035,117610.0,117600.0,0.10700061]
[1752270211078,0.202072,117600.0,117590.0,0.00613391]
[1752270211263,0.1700209,117580.0,117570.0,1.2038895]
[1752270211465,0.61090921,117580.0,117570.0,1.2038895]
[1752270211764,0.58814921,117580.0,117570.0,1.2038895]
[1752270211960,0.94894921,117580.0,117570.0,0.8772995]
[1752270212166,1.00378921,117580.0,117570.0,0.8347938]
[1752270212966,1.05637921,117580.0,117570.0,0.66477]
[1752270213163,1.05637921,117580.0,117570.0,0.73586]
[1752270213367,1.00378921,117580.0,117570.0,1.23586]
[1752270213671,1.00378921,117580.0,117570.0,1.24262014]
[1752270213872,1.00378921,117580.0,117570.0,1.24662014]
[1752270214567,1.00378921,117580.0,117570.0,1.24262014]
[1752270214866,1.00378921,117580.0,117570.0,0.61206014]
[1752270215066,1.00378921,117580.0,117570.0,0.11206014]
[1752270215373,1.07437691,117580.0,117570.0,0.11206014]
[1752270216668,0.67353471,117580.0,117570.0,0.11206014]
[1752270217072,1.07437691,117580.0,117570.0,0.11206014]
[1752270218872,1.07437691,117580.0,117570.0,0.04845]
[1752270219069,0.2774653,117570.0,117560.0,0.74156119]
[1752270219372,1.05639361,117570.0,117560.0,0.74835501]
[1752270219876,1.05639361,117570.0,117560.0,0.10700119]
[1752270219877,0.65555141,117570.0,117560.0,0.10700119]
[1752270220172,1.05639361,117570.0,117560.0,0.08436119]
[1752270220374,0.65555141,117570.0,117560.0,0.00170119]
[1752270220673,0.65555141,117570.0,117560.0,0.00370119]
[1752270220875,1.05639361,117570.0,117560.0,0.10900119]
[1752270221463,0.54812141,117570.0,117560.0,0.91813099]
[1752270221669,0.18732141,117570.0,117560.0,1.73909319]
[1752270221868,0.18732141,117570.0,117560.0,1.74009319]
[1752270222475,0.01728611,117570.0,117560.0,2.10089319]
[1752270222670,0.6583535,117580.0,117570.0,0.2268853]
[1752270222866,0.67561344,117580.0,117570.0,0.2753353]
[1752270223066,0.67561344,117580.0,117570.0,0.1053]
[1752270223067,1.09921564,117580.0,117570.0,0.1053]
[1752270223273,1.18388564,117580.0,117570.0,0.08266]
[1752270223473,0.2774653,117570.0,117560.0,0.08536119]
[1752270223673,1.05636744,117570.0,117560.0,0.08536119]
[1752270223968,1.05636744,117570.0,117560.0,0.00270119]
[1752270224171,1.05636421,117570.0,117560.0,0.50270119]
[1752270224869,1.12578518,117570.0,117560.0,0.50270119]
[1752270225070,0.65552201,117570.0,117560.0,0.50270119]
[1752270225271,1.12578518,117570.0,117560.0,0.50270119]
[1752270225474,0.65552201,117570.0,117560.0,0.50170119]
[1752270225778,1.12578518,117570.0,117560.0,0.00170119]
[1752270225978,1.12578518,117570.0,117560.0,0.05015119]
[1752270227578,0.65552201,117570.0,117560.0,0.05015119]
[1752270227880,1.12578518,117570.0,117560.0,0.00370119]
[1752270228076,1.76770518,117570.0,117560.0,0.00370119]
[1752270228473,1.29744201,117570.0,117560.0,0.00370119]
[1752270228780,1.76770518,117570.0,117560.0,0.00170119]
[1752270229286,0.2753243,117550.0,117540.0,1.35921]
[1752270229482,1.12364418,117550.0,117540.0,1.35921]
[1752270230677,1.14173764,117550.0,117540.0,1.35921]
[1752270230877,1.14173764,117550.0,117540.0,1.36021]
[1752270231976,1.14173764,117550.0,117540.0,1.36221]
[1752270233285,1.14173764,117550.0,117540.0,0.05336]
[1752270233286,1.03227447,117550.0,117540.0,0.05336]
[1752270233680,1.50253764,117550.0,117540.0,0.05336]
[1752270233878,0.98422447,117550.0,117540.0,0.1111]
[1752270234075,0.18732101,117550.0,117540.0,0.2811787]
[1752270234275,0.488343,117560.0,117550.0,0.2781643]
[1752270234276,0.5733743,117560.0,117550.0,0.2781643]
[1752270234579,0.1700613,117560.0,117550.0,2.41410747]
[1752270234780,0.1700613,117560.0,117550.0,2.58424347]
[1752270235078,0.1295323,117570.0,117550.0,2.88765567]
[1752270235279,0.1295323,117570.0,117560.0,1.08716297]
[1752270235280,0.2570563,117570.0,117560.0,1.08716297]
[1752270235485,0.162076,117570.0,117560.0,1.33716297]
[1752270235685,0.2550468,117580.0,117570.0,0.1700353]
[1752270235885,0.2550468,117580.0,117570.0,0.5308353]
[1752270236086,0.2550468,117580.0,117570.0,0.7009393]
[1752270236284,0.2550468,117580.0,117570.0,0.6999393]
[1752270236685,0.2550468,117580.0,117570.0,2.0041793]
[1752270236988,0.2550468,117580.0,117570.0,2.0031793]
[1752270237483,0.2798068,117580.0,117570.0,2.0031793]
[1752270237688,0.2798068,117580.0,117570.0,1.8330753]
[1752270237885,0.2798068,117580.0,117570.0,1.66504]
[1752270238190,1.19136997,117580.0,117570.0,1.30524]
[1752270238386,0.7211068,117580.0,117570.0,1.30524]
[1752270238689,1.19136997,117580.0,117570.0,1.30524]
[1752270239080,1.19136997,117580.0,117570.0,1.80524]
[1752270239591,0.7211068,117580.0,117570.0,1.80524]
[1752270240290,0.7211068,117580.0,117570.0,1.9752753]
[1752270240984,0.7211068,117580.0,117570.0,1.80524]
[1752270241592,0.7211068,117580.0,117570.0,0.501]
[1752270241782,1.19136997,117580.0,117570.0,0.501]
[1752270241983,1.25231451,117580.0,117570.0,0.501]
[1752270242183,1.61311451,117580.0,117570.0,0.501]
[1752270242383,1.14285134,117580.0,117570.0,0.501]
[1752270242580,0.78205134,117580.0,117570.0,0.001]
[1752270242782,1.25231451,117580.0,117570.0,0.001]
[1752270243187,1.19136997,117580.0,117570.0,0.001]
[1752270244188,0.7211068,117580.0,117570.0,0.001]
[1752270244392,0.2272453,117570.0,117560.0,0.00170119]
[1752270244581,1.10635847,117570.0,117560.0,0.00170119]
[1752270244786,1.16730301,117570.0,117560.0,0.00170119]
[1752270246186,1.16730301,117570.0,117560.0,0.00270119]
[1752270246391,1.18476295,117570.0,117560.0,0.00470119]
[1752270246596,0.71449978,117570.0,117560.0,0.00470119]
[1752270246986,1.18476295,117570.0,117560.0,0.00470119]
[1752270247694,0.71449978,117570.0,117560.0,0.00470119]
[1752270247891,1.18476295,117570.0,117560.0,0.00470119]
[1752270251302,1.79517841,117570.0,117560.0,0.00470119]
[1752270252696,1.87124391,117570.0,117560.0,0.00470119]
[1752270252900,1.80327984,117570.0,117560.0,0.00370119]
[1752270253097,1.80427984,117570.0,117560.0,0.00170119]
[1752270253991,1.40298074,117570.0,117560.0,0.00170119]
[1752270254200,1.80427984,117570.0,117560.0,0.00170119]
[1752270254695,1.80427984,117570.0,117560.0,9e-08]
[1752270254896,0.2753242,117550.0,117540.0,1.84652]
[1752270255101,0.2753242,117550.0,117540.0,0.67032]
[1752270255102,1.49429573,117550.0,117540.0,0.67032]
[1752270256202,1.49429573,117550.0,117540.0,0.67132]
[1752270256597,1.49429573,117550.0,117540.0,0.67332]
[1752270256903,1.43340331,117550.0,117540.0,0.67332]
[1752270258295,1.49429573,117550.0,117540.0,0.67332]
[1752270258696,0.77269573,117550.0,117540.0,0.67332]
[1752270258898,0.05994001,117550.0,117540.0,1.7800118]
[1752270259093,0.01745994,117550.0,117540.0,2.0300118]
[1752270259310,0.12718242,117580.0,117570.0,0.1824853]
[1752270259608,0.23091332,117580.0,117570.0,1.6220844]
[1752270259901,0.23091332,117580.0,117570.0,2.0421884]
[1752270260294,0.05311242,117580.0,117570.0,2.4029884]
[1752270260494,0.52115251,117600.0,117590.0,0.1680064]
[1752270260698,0.41584137,117600.0,117590.0,1.5065664]
[1752270260904,0.44822137,117600.0,117590.0,1.5065664]
[1752270261404,0.49820137,117600.0,117590.0,1.5065664]
[1752270261606,0.49820137,117600.0,117590.0,2.0065664]
[1752270261798,0.42213587,117600.0,117590.0,2.0065664]
[1752270262002,0.42213587,117600.0,117590.0,2.0045664]
[1752270262201,0.42313587,117600.0,117590.0,2.0045664]
[1752270262596,0.42513587,117600.0,117590.0,2.0045664]
[1752270266413,0.42513587,117600.0,117590.0,1.83856]
[1752270267100,0.78593587,117600.0,117590.0,1.83856]
[1752270267305,1.25571904,117600.0,117590.0,1.83856]
[1752270268011,0.78593587,117600.0,117590.0,1.83856]
[1752270268211,1.25571904,117600.0,117590.0,1.83856]
[1752270269810,1.25571904,117600.0,117590.0,1.33856]
[1752270270011,0.78593587,117600.0,117590.0,1.33856]
[1752270270212,1.25571904,117600.0,117590.0,1.33856]
[1752270271214,0.78593587,117600.0,117590.0,1.33856]
[1752270271409,1.25571904,117600.0,117590.0,1.33856]
[1752270271610,0.78593587,117600.0,117590.0,1.33856]
[1752270271809,1.27317354,117600.0,117590.0,1.33856]
[1752270273714,0.80339037,117600.0,117590.0,1.33856]
[1752270274115,1.27317354,117600.0,117590.0,1.33856]
[1752270282813,0.1700209,117580.0,117570.0,0.2125361]
[1752270283020,1.05601305,117580.0,117570.0,0.8732961]
[1752270284120,1.05601305,117580.0,117570.0,0.8307874]
[1752270284523,1.05601305,117580.0,117570.0,0.8301474]
[1752270284821,1.05601305,117580.0,117570.0,1.3311474]
[1752270285227,0.6549454,117580.0,117570.0,1.3311474]
[1752270285422,1.05601305,117580.0,117570.0,1.3311474]
[1752270287726,1.05601305,117580.0,117570.0,1.3311553]
[1752270288124,0.6549454,117580.0,117570.0,1.3311553]
[1752270288320,1.05601305,117580.0,117570.0,1.3311553]
[1752270289525,1.05601305,117580.0,117570.0,1.16112]
[1752270289922,1.05601305,117580.0,117570.0,1.3311553]
[1752270291524,0.6549454,117580.0,117570.0,1.3311553]
[1752270291824,1.05601305,117580.0,117570.0,1.3311553]
[1752270292027,0.6549454,117580.0,117570.0,1.3311553]
[1752270292327,1.05601305,117580.0,117570.0,1.3311553]
[1752270292826,0.1874754,117580.0,117570.0,1.3311553]
[1752270293326,0.2628154,117580.0,117570.0,1.3311553]
[1752270294222,0.67655557,117580.0,117570.0,0.4801524]
[1752270294415,0.67631965,117580.0,117570.0,0.3402608]
[1752270294721,0.67631965,117580.0,117570.0,0.2009641]
[1752270294722,1.53922421,117580.0,117570.0,0.2009641]
[1752270294919,0.2053053,117570.0,117560.0,0.00170119]
[1752270295123,1.04251295,117570.0,117560.0,0.00170119]
[1752270295428,1.4435806,117570.0,117560.0,9e-08]
[1752270295617,1.50434986,117570.0,117560.0,9e-08]
[1752270295823,0.70221456,117570.0,117560.0,9e-08]
[1752270296017,1.46408221,117570.0,117560.0,9e-08]
[1752270296329,1.8043806,117570.0,117560.0,9e-08]
[1752270296722,1.40331295,117570.0,117560.0,0.00100009]
[1752270296922,1.46408221,117570.0,117560.0,0.00100009]
[1752270297427,1.86514986,117570.0,117560.0,0.00100009]
[1752270297730,1.8061061,117570.0,117560.0,9e-08]
[1752270297926,1.7300406,117570.0,117560.0,0.00100009]
[1752270298127,0.98874905,117570.0,117560.0,0.00100009]
[1752270298324,1.86622435,117570.0,117560.0,0.00100009]
[1752270298522,1.06408905,117570.0,117560.0,9e-08]
[1752270298726,0.2806598,117560.0,117550.0,1.46888]
[1752270298929,1.46101258,117560.0,117550.0,1.46888]
[1752270299630,1.52185633,117560.0,117550.0,1.46888]
[1752270299826,0.71972103,117560.0,117550.0,1.46888]
[1752270300231,1.52185633,117560.0,117550.0,1.46888]
[1752270301134,1.52285633,117560.0,117550.0,1.46888]
[1752270301630,1.46201258,117560.0,117550.0,1.46888]
[1752270302134,1.52485633,117560.0,117550.0,1.46888]
[1752270302433,1.69499233,117560.0,117550.0,1.46888]
[1752270302729,0.89285703,117560.0,117550.0,1.46888]
[1752270302924,1.69499233,117560.0,117550.0,1.46888]
[1752270303325,1.63414858,117560.0,117550.0,1.46888]
[1752270303930,1.70328857,117560.0,117550.0,1.46888]
[1752270304435,1.70328857,117560.0,117530.0,0.00653958]
[1752270304436,0.2295587,117540.0,117530.0,0.00653958]
[1752270304622,1.04255635,117540.0,117530.0,1.49452]
[1752270304821,0.6414887,117540.0,117530.0,1.49452]
[1752270305128,1.04255635,117540.0,117530.0,1.6646131]
[1752270305532,1.04255635,117540.0,117530.0,1.6666131]
[1752270305727,1.04255635,117540.0,117530.0,1.49652]
[1752270306130,1.04255635,117540.0,117530.0,1.49952]
[1752270306534,1.0601681,117540.0,117530.0,1.49952]
[1752270307132,1.0601681,117540.0,117530.0,1.4995864]
[1752270309433,0.6993681,117540.0,117530.0,1.6696795]
[1752270309635,0.18769045,117540.0,117530.0,1.6696795]
[1752270310235,0.21190045,117540.0,117530.0,1.6696795]
[1752270310435,0.26303045,117540.0,117530.0,2.1696795]
[1752270311131,0.29830045,117540.0,117530.0,2.1696795]
[1752270311430,0.6993681,117540.0,117530.0,1.9995864]
[1752270311632,0.6993681,117540.0,117530.0,2.1696795]
[1752270311937,1.0601681,117540.0,117530.0,1.9995864]
[1752270312131,0.6993681,117540.0,117530.0,1.4995864]
[1752270312635,0.6993681,117540.0,117530.0,1.6696795]
[1752270312832,0.29830045,117540.0,117530.0,1.4995864]
[1752270313029,0.29830045,117540.0,117530.0,1.6696795]
[1752270313426,0.6993681,117540.0,117530.0,1.6696795]
[1752270313832,0.699368,117540.0,117530.0,1.6696795]
[1752270314035,0.29830035,117540.0,117530.0,2.0304795]
[1752270314335,0.699368,117540.0,117530.0,2.0304795]
[1752270315536,0.29830035,117540.0,117530.0,2.0304795]
[1752270316638,0.29830035,117540.0,117530.0,2.0332695]
[1752270325242,0.699368,117540.0,117530.0,2.0332695]
[1752270325739,0.68175625,117540.0,117530.0,2.0332695]
[1752270325940,0.2806886,117540.0,117530.0,2.0332695]
[1752270328645,0.34176165,117540.0,117530.0,2.0332695]
[1752270328945,0.36375282,117540.0,117530.0,2.0332695]
[1752270330947,0.25314282,117540.0,117530.0,2.43433715]
[1752270331249,0.85685513,117560.0,117530.0,2.43433715]
[1752270331250,0.10887785,117570.0,117560.0,0.1700497]
[1752270331450,0.10887785,117570.0,117560.0,2.29379778]
[1752270331747,0.10887785,117570.0,117560.0,2.96391778]
[1752270331948,0.10887785,117570.0,117560.0,3.21391778]
[1752270332450,0.003,117570.0,117560.0,3.61498543]
[1752270332745,0.31939505,117590.0,117580.0,0.1700208]
[1752270332949,0.31939505,117590.0,117580.0,2.02292845]
[1752270333246,0.10687785,117590.0,117580.0,2.56071253]
[1752270333451,0.27687165,117600.0,117590.0,0.1700063]
[1752270333755,0.10687785,117600.0,117590.0,0.93187395]
[1752270334043,0.26156049,117610.0,117600.0,0.1699919]
[1752270334238,0.26156049,117610.0,117600.0,2.37921955]
[1752270334447,0.10887785,117610.0,117600.0,2.54928355]
[1752270334645,0.10887785,117610.0,117600.0,4.1266712]
[1752270334843,0.002,117610.0,117600.0,4.1266712]
[1752270335047,0.002,117610.0,117600.0,4.19437429]
[1752270335748,0.002,117610.0,117600.0,3.39223899]
[1752270335949,0.002,117610.0,117600.0,4.19437429]
[1752270336350,0.002,117610.0,117600.0,4.19537429]
[1752270336751,0.2549421,117630.0,117600.0,4.19537429]
[1752270336752,0.3325121,117630.0,117620.0,0.169963]
[1752270336954,0.3325121,117630.0,117620.0,2.01663065]
[1752270338845,0.3365121,117630.0,117620.0,2.01663065]
[1752270339254,0.3365121,117630.0,117620.0,2.51663065]
[1752270339757,0.3365121,117630.0,117620.0,2.115563]
[1752270340450,0.3365121,117630.0,117620.0,2.51663065]
[1752270340655,0.3723021,117630.0,117620.0,2.51663065]
[1752270341057,0.2589421,117630.0,117620.0,2.51663065]
[1752270341358,0.004,117630.0,117620.0,3.04746265]
[1752270343163,0.2494897,117650.0,117640.0,0.1699341]
[1752270343462,0.2494897,117650.0,117640.0,2.01492175]
[1752270343761,0.2494897,117650.0,117640.0,2.37572175]
[1752270343962,0.2494897,117650.0,117640.0,2.39202592]
[1752270344562,0.1769197,117650.0,117640.0,2.39202592]
[1752270344763,0.1769197,117650.0,117640.0,2.89202592]
[1752270344956,0.1769197,117650.0,117640.0,2.49095827]
[1752270345358,0.1769197,117650.0,117640.0,2.89202592]
[1752270345559,0.2902797,117650.0,117640.0,2.49095827]
[1752270345761,0.69134735,117650.0,117640.0,2.13015827]
[1752270346161,0.69134735,117650.0,117640.0,2.13753349]
[1752270346565,0.69134735,117650.0,117640.0,2.14536349]
[1752270347266,0.69134735,117650.0,117640.0,2.15864437]
[1752270347566,0.69134735,117650.0,117640.0,2.15864417]
[1752270348065,1.05214735,117650.0,117640.0,2.14536349]
[1752270348265,1.05214735,117650.0,117640.0,2.15864453]
[1752270348567,0.6530797,117650.0,117640.0,1.96759939]
[1752270348860,1.05414735,117650.0,117640.0,2.13753349]
[1752270349365,1.05414735,117650.0,117640.0,2.15081473]
[1752270349566,1.05414735,117650.0,117640.0,1.65081473]
[1752270352758,0.6530797,117650.0,117640.0,1.65081473]
[1752270352958,1.05414735,117650.0,117640.0,1.65081473]
[1752270353669,1.05414735,117650.0,117640.0,1.71911249]
[1752270355568,1.05414735,117650.0,117640.0,1.70583125]
[1752270355769,1.05414735,117650.0,117640.0,1.53589715]
[1752270357668,1.05414735,117650.0,117640.0,1.54917877]
[1752270360163,1.05414735,117650.0,117640.0,1.71911297]
[1752270360665,1.05414735,117650.0,117640.0,1.70583135]
[1752270361059,1.05414735,117650.0,117640.0,1.54917878]
[1752270361260,1.05414735,117650.0,117640.0,1.71911298]
[1752270361564,1.05414735,117650.0,117640.0,1.70583135]
[1752270361970,0.6530797,117650.0,117640.0,1.53589715]
[1752270362170,1.05414735,117650.0,117640.0,1.70583135]
[1752270363470,0.6530797,117650.0,117640.0,1.70583135]
[1752270363672,1.05414735,117650.0,117640.0,1.70583135]
[1752270364475,1.05414735,117650.0,117640.0,1.71366135]
[1752270367567,0.6530797,117650.0,117640.0,1.71366135]
[1752270367773,1.05414735,117650.0,117640.0,1.71366135]
[1752270368168,1.05414735,117650.0,117640.0,1.70583135]
[1752270368375,1.11459669,117650.0,117640.0,1.71366135]
[1752270369083,1.11459669,117650.0,117640.0,1.70583135]
[1752270370283,1.11459669,117650.0,117640.0,0.04939092]
[1752270370580,1.11459669,117650.0,117640.0,0.75275092]
[1752270370783,1.11459669,117650.0,117640.0,0.73946939]
[1752270370978,0.71352904,117650.0,117640.0,0.73946939]
[1752270371176,1.11459669,117650.0,117640.0,0.7527514]
[1752270371474,1.11459669,117650.0,117640.0,0.0493914]
[1752270371680,0.2817786,117630.0,117620.0,0.19848985]
[1752270371980,0.68284625,117630.0,117620.0,0.91393206]
[1752270372179,0.68284625,117630.0,117620.0,0.92121522]
[1752270372776,0.68284625,117630.0,117620.0,0.92121555]
[1752270373075,0.68484625,117630.0,117620.0,0.92121555]